bitfinex-derivatives/quotes_ETHF0:USTF0_20210406
["timestamp","ask_amount","ask_price","bid_price","bid_amount"]
[1617720633604,45.0,2076.6,2075.1,71.9165]
[1617720634206,15.0,2076.6,2075.1,71.9165]
[1617720634404,15.0,2076.6,2075.1,73.9165]
[1617720634604,15.0,2076.6,2076.0,2.90695]
[1617720635605,15.0,2076.6,2076.0,5.75615]
[1617720636611,15.0,2076.6,2075.1,71.9165]
[1617720636908,47.4653,2076.6,2075.1,71.9165]
[1617720637509,17.4653,2076.6,2075.1,71.9165]
[1617720637710,17.4653,2076.6,2075.2,2.0]
[1617720637911,15.0,2076.6,2075.2,2.0]
[1617720638512,15.0,2076.6,2076.0,2.90695]
[1617720639213,15.0,2076.6,2076.0,4.96015]
[1617720640017,15.0,2076.6,2076.1,72.8614]
[1617720640616,15.0,2076.6,2076.5,2.90695]
[1617720640815,15.0,2076.6,2076.5,7.39865]
[1617720642515,13.8733,2076.6,2076.5,7.39865]
[1617720642717,13.8733,2076.6,2076.5,37.39865]
[1617720643924,4.1378,2076.6,2076.5,37.39865]
[1617720644127,60.8131,2078.7,2076.5,37.39865]
[1617720644426,12.801,2079.4,2076.5,37.39865]
[1617720644619,12.801,2079.4,2078.2,2.90695]
[1617720644817,30.0,2079.3,2078.2,5.42265]
[1617720646525,16.0661,2079.6,2078.3,2.0]
[1617720646820,13.4951,2079.6,2078.9,2.90695]
[1617720647119,2.0,2080.5,2078.9,1.9096]
[1617720647821,30.0,2080.4,2078.9,1.9096]
[1617720648019,2.0,2080.3,2078.9,1.9096]
[1617720648219,30.0,2080.2,2078.9,1.9096]
[1617720648421,32.0,2080.2,2078.9,1.9096]
[1617720648619,2.90695,2079.0,2078.9,1.9096]
[1617720650123,2.90695,2079.0,2078.2,2.5157]
[1617720650334,2.90695,2079.0,2078.0,65.6308]
[1617720650725,2.3243,2079.4,2078.4,2.90695]
[1617720650924,2.3243,2079.4,2078.0,65.6308]
[1617720651926,58.5468,2079.9,2078.0,65.6308]
[1617720652325,58.5468,2079.9,2076.1,2.0]
[1617720652725,61.1178,2079.9,2077.3,2.90695]
[1617720652927,32.0,2079.8,2077.3,2.90695]
[1617720653928,30.01403952,2079.8,2077.3,2.90695]
[1617720654132,30.0,2079.8,2077.3,2.90695]
[1617720654831,2.0,2079.7,2077.6,2.90695]
[1617720655933,2.0,2079.7,2077.0,0.9703]
[1617720656134,30.0,2079.6,2076.0,13.2184]
[1617720656434,33.9203,2079.6,2076.0,13.2184]
[1617720656733,33.9203,2079.6,2077.3,2.90695]
[1617720657936,33.93432568,2079.6,2077.3,2.90695]
[1617720658636,2.90695,2077.4,2077.3,2.90695]
[1617720659236,0.01402556,2079.7,2077.3,2.90695]
[1617720659437,30.0,2079.8,2077.3,5.06935]
[1617720659738,61.1178,2079.9,2077.3,5.06935]
[1617720660739,2.90695,2078.4,2078.0,2.90695]
[1617720662640,2.90695,2078.7,2078.3,2.90695]
[1617720664339,2.90695,2078.7,2077.5,2.248]
[1617720664840,2.7649,2078.7,2077.9,2.90695]
[1617720666046,2.7649,2078.7,2077.3,0.9622]
[1617720666844,2.7649,2078.7,2077.7,2.90695]
[1617720667048,2.7649,2078.7,2077.3,0.9622]
[1617720667757,32.7649,2078.7,2076.4,13.8968]
[1617720667949,2.7649,2078.7,2076.4,13.8968]
[1617720668451,30.0,2078.6,2076.4,13.8968]
[1617720668849,2.7649,2078.7,2077.1,2.90695]
[1617720670149,100.8212,2079.0,2077.1,2.90695]
[1617720670849,2.90695,2077.2,2077.1,2.90695]
[1617720672052,2.90695,2077.2,2076.4,13.8968]
[1617720672852,2.90695,2076.5,2076.4,16.80375]
[1617720673253,2.4336,2077.6,2076.4,16.80375]
[1617720674854,2.90695,2076.5,2076.4,16.80375]
[1617720678667,2.90695,2076.5,2076.4,13.8968]
[1617720678866,2.90695,2076.5,2075.9,2.90695]
[1617720679868,2.571,2078.1,2075.9,2.90695]
[1617720680074,2.571,2078.1,2075.9,5.11555]
[1617720680270,4.571,2078.1,2075.9,5.11555]
[1617720680470,4.571,2078.1,2075.9,7.11555]
[1617720680471,30.0,2078.0,2075.9,7.11555]
[1617720680870,2.90695,2077.0,2076.8,2.90695]
[1617720681072,30.0,2078.0,2076.8,2.90695]
[1617720682272,30.0,2078.0,2076.8,5.73145]
[1617720682471,30.0,2077.8,2076.8,5.73145]
[1617720682672,32.0,2077.8,2076.8,5.73145]
[1617720682872,2.90695,2076.9,2076.8,5.73145]
[1617720683175,2.90695,2076.9,2076.8,2.8245]
[1617720683374,2.90695,2076.9,2075.2,15.1452]
[1617720683772,32.90695,2076.9,2075.2,15.1452]
[1617720684873,30.0,2076.9,2075.9,2.90695]
[1617720685774,2.4147,2077.3,2075.9,2.90695]
[1617720686074,30.0,2077.3,2075.9,2.90695]
[1617720686882,30.0,2077.3,2076.5,2.90695]
[1617720687081,30.0,2077.3,2076.5,5.60045]
[1617720687281,54.4948,2077.7,2076.5,5.60045]
[1617720687780,54.4948,2077.7,2076.5,7.60045]
[1617720688382,84.4948,2077.7,2076.5,7.60045]
[1617720688785,84.4948,2077.7,2076.5,2.90695]
[1617720688985,2.90695,2076.6,2076.5,2.90695]
[1617720691686,2.90695,2076.6,2075.5,2.0]
[1617720692388,2.90695,2076.6,2075.5,32.0]
[1617720692591,54.4948,2077.7,2075.5,32.0]
[1617720692993,54.4948,2077.7,2077.5,2.90695]
[1617720693192,54.4948,2077.7,2077.5,4.81875]
[1617720694990,2.90695,2077.6,2077.5,4.81875]
[1617720695391,2.90695,2077.6,2077.5,6.81875]
[1617720695593,2.90695,2077.6,2077.5,4.81875]
[1617720696395,54.4948,2077.7,2077.5,4.81875]
[1617720697095,54.4948,2077.7,2077.6,2.0]
[1617720697593,36.1434,2077.7,2077.6,2.0]
[1617720697794,34.342,2077.7,2077.6,2.0]
[1617720698093,34.342,2077.7,2077.5,4.81875]
[1617720698996,2.90695,2077.6,2077.5,2.90695]
[1617720701698,5.90145,2077.6,2077.5,2.90695]
[1617720702400,5.90145,2077.6,2076.9,61.7312]
[1617720702901,2.9945,2077.6,2077.3,2.90695]
[1617720703602,34.342,2077.7,2077.3,2.90695]
[1617720705105,34.342,2077.7,2077.6,2.90695]
[1617720705808,34.342,2077.7,2076.9,54.1943]
[1617720706006,36.8633,2077.7,2076.9,54.1943]
[1617720706806,36.8633,2077.7,2076.9,56.1943]
[1617720707009,36.8633,2077.7,2077.6,2.90695]
[1617720707817,36.8633,2077.7,2076.9,54.1943]
[1617720709112,2.90695,2077.0,2076.4,2.90695]
[1617720709412,5.52395,2077.0,2076.4,2.90695]
[1617720710411,5.52395,2077.0,2075.6,64.1026]
[1617720710611,30.0,2076.9,2075.6,64.1026]
[1617720711012,2.90695,2075.7,2075.6,64.1026]
[1617720711211,4.86875,2075.7,2075.4,2.90695]
[1617720714114,4.86875,2075.7,2075.3,75.7909]
[1617720714314,4.86875,2075.7,2073.8,2.0]
[1617720714515,4.86875,2075.7,2073.8,32.0]
[1617720715218,1.9618,2075.7,2075.0,2.90695]
[1617720716119,1.9618,2075.7,2073.3,30.0]
[1617720716421,32.0,2075.6,2073.3,2.0]
[1617720716821,32.0,2075.6,2072.8,4.93814737]
[1617720717022,32.0,2075.6,2074.0,2.90695]
[1617720717222,32.9746,2075.6,2074.0,2.90695]
[1617720717521,32.9746,2075.6,2073.1,71.3295]
[1617720718522,32.0,2075.6,2073.1,71.3295]
[1617720719022,32.0,2075.6,2074.2,2.90695]
[1617720719422,32.0,2075.6,2073.1,71.3295]
[1617720719622,32.9668,2075.6,2073.1,71.3295]
[1617720719924,32.0,2075.6,2073.1,71.3295]
[1617720720424,32.0,2075.6,2072.4,32.0]
[1617720720834,32.952,2075.6,2072.6,68.6156]
[1617720721045,32.952,2075.6,2073.4,2.90695]
[1617720721222,32.952,2075.6,2072.6,68.6156]
[1617720723130,32.952,2075.6,2073.4,2.90695]
[1617720724227,32.952,2075.6,2072.2,2.0]
[1617720725129,2.90695,2073.1,2073.0,2.90695]
[1617720727933,2.90695,2073.1,2071.8,59.4406]
[1617720728334,2.90695,2073.1,2070.9,29.5557]
[1617720728633,2.90695,2073.1,2070.9,27.5557]
[1617720729234,32.5395,2073.5,2072.1,2.90695]
[1617720729532,2.5395,2073.5,2072.1,2.90695]
[1617720730334,30.0,2073.5,2072.1,2.90695]
[1617720730534,69.1013,2073.8,2072.1,2.90695]
[1617720730733,67.1013,2073.8,2072.1,2.90695]
[1617720731133,2.90695,2072.2,2072.1,2.90695]
[1617720731333,5.66865,2072.2,2072.1,2.90695]
[1617720731533,5.66865,2072.2,2070.9,13.9273]
[1617720731734,5.66865,2072.2,2070.4,15.1355]
[1617720733249,2.7617,2072.2,2072.1,2.90695]
[1617720733539,2.891,2072.9,2072.1,2.90695]
[1617720734238,67.1013,2073.8,2072.1,2.90695]
[1617720735141,67.1013,2073.8,2072.6,2.90695]
[1617720735539,67.1013,2073.8,2071.0,0.9517]
[1617720735740,99.5855,2073.8,2070.6,2.0]
[1617720735943,69.5855,2073.8,2070.6,2.0]
[1617720736142,69.5855,2073.8,2070.6,32.0]
[1617720737047,67.1013,2073.8,2070.6,32.0]
[1617720737243,67.1013,2073.8,2073.1,2.90695]
[1617720737445,67.1013,2073.8,2073.1,5.53355]
[1617720738047,0.952,2075.6,2073.1,5.53355]
[1617720738245,30.0,2075.0,2073.1,5.53355]
[1617720738756,0.952,2075.6,2073.1,5.53355]
[1617720738949,30.0,2075.0,2073.1,5.53355]
[1617720739348,0.952,2075.6,2073.1,5.53355]
[1617720739647,79.3703,2076.1,2073.1,5.53355]
[1617720740454,2.0,2076.0,2073.1,5.53355]
[1617720740650,32.0,2076.0,2073.1,5.53355]
[1617720740851,2.0,2076.0,2073.1,5.53355]
[1617720741259,2.0,2076.0,2074.3,2.90695]
[1617720741452,2.0,2076.0,2074.3,5.52585]
[1617720741856,30.0,2075.9,2074.3,5.52585]
[1617720742453,30.0,2075.9,2074.3,2.6189]
[1617720742656,30.0,2075.9,2073.1,2.6266]
[1617720742855,32.212,2075.9,2070.7,0.9543]
[1617720743257,12.0,2075.5,2073.7,2.90695]
[1617720743454,32.0,2075.4,2073.7,2.90695]
[1617720743655,30.0,2075.4,2073.7,2.90695]
[1617720744254,12.0,2075.5,2073.7,2.90695]
[1617720745255,12.0,2075.5,2074.1,2.90695]
[1617720745454,12.0,2075.5,2073.4,1.8656]
[1617720745658,12.0,2075.5,2073.9,2.0128]
[1617720747254,12.0,2075.5,2074.6,2.90695]
[1617720747462,12.0,2075.5,2074.6,5.35585]
[1617720747853,12.0,2075.5,2074.6,2.4489]
[1617720748354,12.0,2075.5,2072.3,13.5209]
[1617720748556,30.0,2075.4,2072.3,13.5209]
[1617720748755,16.0962,2075.5,2072.3,13.5209]
[1617720749456,16.0962,2075.5,2074.0,2.90695]
[1617720749656,14.0962,2075.5,2074.0,2.90695]
[1617720749957,44.0962,2075.5,2072.4,2.0]
[1617720750258,46.0962,2075.5,2072.3,13.5209]
[1617720750458,46.0962,2075.5,2072.2,13.3557]
[1617720750859,46.0962,2075.5,2072.3,2.0]
[1617720751159,44.0962,2075.5,2072.3,4.6884]
[1617720751360,44.0962,2075.5,2073.8,2.90695]
[1617720751663,14.0962,2075.5,2073.8,2.90695]
[1617720751861,12.0,2075.5,2073.8,2.90695]
[1617720753464,2.90695,2074.9,2074.3,2.90695]
[1617720753665,2.90695,2074.9,2074.3,5.87205]
[1617720755270,2.90695,2074.9,2073.4,2.0265]
[1617720755469,2.90695,2074.4,2074.1,2.90695]
[1617720756873,12.0,2075.5,2074.1,2.90695]
[1617720757072,12.0,2075.5,2074.1,5.03315]
[1617720757373,12.0,2075.5,2074.8,2.90695]
[1617720757572,12.0,2075.5,2074.8,5.53365]
[1617720759576,2.90695,2074.9,2074.8,5.53365]
[1617720759984,12.0,2075.5,2074.8,5.53365]
[1617720760579,12.0,2075.5,2074.8,35.53365]
[1617720760979,11.9214,2075.5,2075.0,30.0]
[1617720761180,11.3656,2075.5,2075.0,30.0]
[1617720761581,11.3656,2075.5,2075.4,2.90695]
[1617720761780,11.3656,2075.5,2075.4,5.52115]
[1617720762779,11.3656,2075.5,2075.4,2.90695]
[1617720765582,14.27255,2075.5,2075.4,2.90695]
[1617720766288,11.3656,2075.5,2075.4,2.90695]
[1617720766692,11.3656,2075.5,2075.4,4.78885]
[1617720767085,11.3656,2075.5,2075.4,6.78885]
[1617720767585,10.3567,2075.5,2075.4,36.78885]
[1617720767783,57.8664,2077.9,2075.4,36.78885]
[1617720769495,57.8664,2077.9,2077.4,2.90695]
[1617720769698,57.8664,2077.9,2077.3,1.9035]
[1617720770588,87.8664,2077.9,2077.3,1.9035]
[1617720770790,32.0,2077.8,2075.4,33.8819]
[1617720770991,32.0,2077.8,2075.4,1.8819]
[1617720771190,32.0,2077.8,2074.9,32.0]
[1617720771491,32.0,2077.8,2076.4,2.90695]
[1617720771691,32.0,2077.8,2074.9,32.0]
[1617720771692,34.571,2077.8,2074.9,32.0]
[1617720771890,34.571,2077.8,2074.9,2.0]
[1617720772692,34.571,2077.8,2074.9,32.0]
[1617720773592,2.90695,2076.7,2076.3,2.90695]
[1617720775292,32.571,2077.8,2076.3,2.90695]
[1617720775694,2.90695,2076.4,2076.3,2.90695]
[1617720776298,32.0,2077.7,2076.3,2.90695]
[1617720776497,2.7687,2077.3,2076.3,2.90695]
[1617720776701,32.0,2077.7,2076.3,2.90695]
[1617720777601,2.90695,2076.4,2076.3,2.90695]
[1617720777801,5.75785,2076.4,2076.3,2.90695]
[1617720779705,5.75785,2076.4,2074.1,32.0]
[1617720780607,35.75785,2076.4,2074.1,32.0]
[1617720781106,35.75785,2076.4,2074.1,2.0]
[1617720781308,35.75785,2076.4,2073.5,32.0]
[1617720781609,34.8509,2076.4,2075.3,2.90695]
[1617720781906,34.8509,2076.4,2074.1,2.0]
[1617720782507,34.8509,2076.4,2073.5,30.0]
[1617720782712,34.8509,2076.4,2073.5,0.9652]
[1617720782907,34.8509,2076.4,2073.4,2.0]
[1617720783409,34.8509,2076.4,2073.5,30.0]
[1617720783707,34.8509,2076.4,2074.8,2.90695]
[1617720785707,34.8509,2076.4,2075.2,2.90695]
[1617720786108,34.8509,2076.4,2075.2,5.20815]
[1617720786508,32.8509,2076.4,2075.2,5.20815]
[1617720786909,33.8216,2076.4,2075.2,5.20815]
[1617720787609,2.90695,2075.3,2075.2,5.20815]
[1617720788009,3.87015,2075.3,2075.2,5.20815]
[1617720788310,2.90695,2075.3,2075.2,2.90695]
[1617720789411,3.86585,2075.3,2075.2,2.90695]
[1617720789611,2.90695,2075.3,2075.2,2.90695]
[1617720789812,4.74265,2075.3,2073.9,2.0]
[1617720790114,4.74265,2075.3,2073.3,30.0]
[1617720790316,4.74265,2075.3,2073.4,2.0]
[1617720790513,4.74265,2075.3,2073.5,30.0]
[1617720790716,5.70545,2075.3,2073.6,2.0]
[1617720790916,4.74265,2075.3,2073.6,2.0]
[1617720791117,4.74265,2075.3,2073.6,32.0]
[1617720791315,2.90695,2075.3,2073.6,32.0]
[1617720792016,2.90695,2075.0,2074.9,2.90695]
[1617720792318,57.4184,2075.7,2074.9,2.90695]
[1617720792319,57.4184,2075.7,2074.9,5.26345]
[1617720793016,30.0,2076.5,2074.9,6.21665]
[1617720793916,30.0,2076.5,2075.4,2.90695]
[1617720794117,30.0,2076.5,2075.4,5.04835]
[1617720795320,75.2983,2076.9,2075.4,5.04835]
[1617720795720,75.2983,2076.9,2075.4,7.04835]
[1617720795920,75.2983,2076.9,2076.2,2.90695]
[1617720796119,75.2983,2076.9,2076.2,5.68295]
[1617720796722,2.0,2077.7,2076.2,5.68295]
[1617720797420,30.0,2077.6,2076.2,5.68295]
[1617720797822,2.0,2077.7,2076.2,5.68295]
[1617720797823,2.0,2077.7,2076.2,6.63665]
[1617720798021,2.0,2077.7,2076.6,2.90695]
[1617720798520,32.0,2077.6,2076.6,2.90695]
[1617720799120,30.0,2077.6,2076.6,2.90695]
[1617720799322,2.571,2077.8,2076.6,2.90695]
[1617720799722,32.571,2077.8,2076.6,2.90695]
[1617720800022,65.0818,2078.2,2077.0,2.90695]
[1617720800220,65.0818,2078.2,2077.0,4.73925]
[1617720800621,2.0,2078.1,2077.0,4.73925]
[1617720800922,2.0,2077.9,2077.0,4.73925]
[1617720801323,2.9692,2077.9,2077.0,4.73925]
[1617720801523,2.0,2077.9,2077.0,4.73925]
[1617720801722,30.0,2077.8,2077.0,4.73925]
[1617720801922,2.90695,2077.1,2077.0,4.73925]
[1617720802722,2.90695,2077.1,2076.2,2.776]
[1617720802924,2.90695,2077.1,2075.4,2.1414]
[1617720803125,2.90695,2077.1,2075.1,2.0]
[1617720803424,2.90695,2077.1,2075.1,32.0]
[1617720804024,2.90695,2077.1,2076.9,2.90695]
[1617720804225,2.90695,2077.1,2076.9,5.18745]
[1617720806029,7.669,2078.7,2077.5,2.90695]
[1617720806231,7.669,2078.7,2077.5,4.95545]
[1617720806730,2.571,2078.7,2077.5,4.95545]
[1617720807833,32.571,2078.7,2077.5,4.95545]
[1617720808032,2.90695,2077.8,2077.5,2.90695]
[1617720808233,2.90695,2077.8,2075.5,32.0]
[1617720808533,5.29185,2077.8,2075.5,32.0]
[1617720809435,2.90695,2077.8,2075.5,32.0]
[1617720809931,2.90695,2077.8,2077.6,2.90695]
[1617720810132,2.90695,2077.8,2077.6,5.12245]
[1617720811133,2.90695,2077.8,2077.7,2.0]
[1617720812440,2.90695,2077.8,2077.6,5.12245]
[1617720814339,2.90695,2077.8,2077.6,2.90695]
[1617720815644,3.87935,2077.8,2077.6,2.90695]
[1617720815951,2.90695,2077.8,2077.6,2.90695]
[1617720819843,3.85915,2077.8,2077.6,2.90695]
[1617720820045,2.90695,2077.8,2077.6,2.90695]
[1617720821248,5.27995,2077.8,2076.4,2.0]
[1617720822148,2.373,2077.8,2077.1,2.90695]
[1617720822750,2.0,2078.5,2077.1,2.90695]
[1617720823252,2.8463,2078.6,2077.1,2.90695]
[1617720823451,72.6242,2078.8,2077.1,7.13135]
[1617720824151,2.90695,2077.6,2077.5,2.90695]
[1617720825552,72.6242,2078.8,2077.5,2.90695]
[1617720826053,72.6242,2078.8,2078.1,2.90695]
[1617720826358,72.6242,2078.8,2078.1,5.25565]
[1617720828154,72.6242,2078.8,2078.5,2.90695]
[1617720829066,74.6242,2078.8,2077.2,2.0]
[1617720829278,77.083,2078.8,2076.7,2.0]
[1617720829471,77.083,2078.8,2076.2,2.0]
[1617720829671,77.083,2078.8,2076.3,30.0]
[1617720829862,77.083,2078.8,2076.4,2.0]
[1617720830062,77.083,2078.8,2078.0,2.90695]
[1617720830362,77.083,2078.8,2076.9,0.9484]
[1617720830563,77.083,2078.8,2076.6,2.0]
[1617720830965,107.083,2078.8,2076.6,2.0]
[1617720831367,107.083,2078.8,2076.0,32.0]
[1617720832063,107.083,2078.8,2077.6,2.90695]
[1617720834166,2.90695,2077.7,2077.6,2.90695]
[1617720834367,4.77435,2077.7,2077.6,2.90695]
[1617720836870,2.90695,2077.7,2077.6,2.90695]
[1617720837370,4.76155,2077.7,2077.6,2.90695]
[1617720837770,34.76155,2077.7,2073.1,4.71449803]
[1617720837971,34.76155,2077.7,2074.5,0.9634]
[1617720838172,30.0,2077.5,2076.6,2.90695]
[1617720838471,2.0,2077.4,2076.6,2.90695]
[1617720838671,30.0,2077.3,2076.6,2.90695]
[1617720838873,32.0,2077.3,2076.6,2.90695]
[1617720839080,2.0,2077.3,2076.6,2.90695]
[1617720839477,1.8546,2077.7,2076.6,2.90695]
[1617720839972,2.0,2078.0,2076.6,2.90695]
[1617720840171,2.90695,2076.9,2076.6,2.90695]
[1617720862493,4.90695,2076.9,2076.6,2.90695]
[1617720862894,34.90695,2076.9,2073.5,30.0]
[1617720863895,34.90695,2076.9,2073.6,2.0]
[1617720864195,34.90695,2076.9,2073.7,30.0]
[1617720864395,32.0,2076.9,2076.0,2.90695]
[1617720865199,32.0,2076.9,2074.0,2.0]
[1617720865397,32.0,2076.9,2073.9,32.0]
[1617720865797,2.0,2076.9,2073.9,32.0]
[1617720865998,2.0,2076.7,2073.9,32.0]
[1617720866199,30.0,2076.6,2073.9,32.0]
[1617720866397,2.0,2076.5,2075.4,2.90695]
[1617720866598,30.0,2076.1,2073.5,32.0]
[1617720866798,31.9262,2076.1,2073.5,2.0]
[1617720867098,33.9262,2076.1,2072.4,13.0669]
[1617720867498,33.9262,2076.1,2072.5,30.0]
[1617720867810,33.9262,2076.1,2072.7,30.0]
[1617720867998,33.9262,2076.1,2072.8,2.0]
[1617720868200,33.9262,2076.1,2072.9,30.0]
[1617720868399,33.9262,2076.1,2074.6,2.90695]
[1617720869601,31.9262,2076.1,2074.6,2.90695]
[1617720869801,30.0,2076.1,2074.6,5.05585]
[1617720870307,2.90695,2074.7,2074.6,5.05585]
[1617720871103,2.90695,2074.7,2074.6,2.90695]
[1617720872204,72.2487,2076.2,2074.6,2.90695]
[1617720872405,72.2487,2076.2,2075.1,2.90695]
[1617720872605,102.2487,2076.2,2075.1,4.75515]
[1617720873706,102.2487,2076.2,2075.1,2.90695]
[1617720874105,102.2487,2076.2,2074.0,2.3731]
[1617720874405,104.6204,2076.2,2074.6,2.90695]
[1617720875409,104.6204,2076.2,2071.3,4.74606958]
[1617720875609,104.6204,2076.2,2072.5,2.0]
[1617720875808,104.6204,2076.2,2072.5,32.0]
[1617720876308,2.90695,2074.4,2074.2,2.90695]
[1617720877208,2.7466,2074.9,2074.2,2.90695]
[1617720877408,80.7075,2075.7,2074.2,2.90695]
[1617720877609,80.7075,2075.7,2074.2,5.55925]
[1617720878312,80.7075,2075.7,2074.9,2.90695]
[1617720878510,80.7075,2075.7,2074.9,5.72895]
[1617720880413,2.90695,2075.0,2074.9,2.90695]
[1617720880914,2.90695,2075.0,2073.7,2.9407]
[1617720881115,2.90695,2075.0,2073.8,2.0]
[1617720881816,2.90695,2075.0,2073.0,30.0]
[1617720882016,2.90695,2075.0,2073.1,2.0]
[1617720882219,2.90695,2075.0,2073.2,30.0]
[1617720882417,2.0,2075.6,2074.4,2.90695]
[1617720882617,80.7075,2075.7,2074.4,2.90695]
[1617720883319,80.7075,2075.7,2074.4,5.09345]
[1617720884419,80.7075,2075.7,2074.9,2.90695]
[1617720884619,2.0,2076.6,2074.9,5.12615]
[1617720884820,32.0,2076.6,2074.9,5.12615]
[1617720885021,7.87385,2074.9,2074.4,2.1865]
[1617720885623,7.87385,2074.9,2073.9,34.5858]
[1617720885822,7.87385,2074.9,2073.9,32.0]
[1617720886424,7.87385,2074.9,2074.5,2.90695]
[1617720888525,2.90695,2074.6,2074.5,2.90695]
[1617720892429,2.90695,2074.6,2074.5,4.90695]
[1617720892930,7.87385,2074.9,2074.5,35.88135]
[1617720893131,7.87385,2074.9,2074.5,37.84405]
[1617720894432,7.87385,2074.9,2074.8,2.90695]
[1617720895533,7.87385,2074.9,2073.3,0.9568]
[1617720896433,7.87385,2074.9,2074.4,2.90695]
[1617720896734,7.87385,2074.9,2073.4,32.0]
[1617720897135,72.51455,2074.9,2073.4,32.0]
[1617720898535,72.51455,2074.9,2074.0,2.90695]
[1617720899736,72.51455,2074.9,2074.1,2.0]
[1617720900236,7.87385,2074.9,2074.1,2.0]
[1617720900537,7.87385,2074.9,2074.8,4.90695]
[1617720900736,7.87385,2074.9,2074.8,7.37165]
[1617720902738,7.87385,2074.9,2074.8,37.37165]
[1617720905938,0.14505,2074.9,2074.8,37.37165]
[1617720906440,57.1175,2076.8,2076.0,2.90695]
[1617720906640,57.1175,2076.8,2076.0,4.92405]
[1617720908138,2.571,2077.3,2076.0,4.92405]
[1617720908340,55.443,2077.4,2076.0,4.92405]
[1617720908538,2.90695,2076.1,2076.0,4.92405]
[1617720909838,2.90695,2076.1,2076.0,2.90695]
[1617720910038,2.90695,2076.1,2074.8,34.4647]
[1617720910638,2.7963,2076.4,2075.5,2.90695]
[1617720911767,58.014,2077.4,2075.5,35.21585]
[1617720911951,2.0,2077.3,2075.5,35.21585]
[1617720912142,58.014,2077.4,2075.6,2.0]
[1617720912639,55.443,2077.4,2076.2,2.90695]
[1617720912839,55.443,2077.4,2076.2,5.56345]
[1617720914040,55.443,2077.4,2076.2,2.90695]
[1617720914539,2.90695,2076.3,2076.2,2.90695]
[1617720916844,3.86985,2076.3,2075.0,30.0]
[1617720917043,3.86985,2076.3,2073.6,12.9194]
[1617720917647,2.0,2076.2,2073.7,30.0]
[1617720917845,2.0,2076.2,2073.8,2.0]
[1617720918045,2.0,2076.2,2073.8,32.0]
[1617720918345,32.0,2076.2,2073.8,32.0]
[1617720918546,32.0,2076.2,2074.7,2.90695]
[1617720919648,32.0,2076.2,2073.8,30.0]
[1617720920647,32.0,2076.2,2074.6,2.90695]
[1617720921455,30.0,2076.1,2074.6,2.90695]
[1617720921655,2.0,2076.0,2074.6,2.90695]
[1617720921854,30.0,2075.9,2074.6,2.90695]
[1617720922056,2.0,2075.8,2073.0,30.0]
[1617720922355,2.0,2075.6,2073.0,30.0]
[1617720922555,4.9834,2075.6,2073.9,2.90695]
[1617720922754,30.0,2075.5,2073.9,2.90695]
[1617720922956,2.0,2075.4,2073.9,2.90695]
[1617720923154,68.0777,2075.2,2073.9,2.90695]
[1617720923356,2.0,2075.1,2073.9,2.90695]
[1617720923556,4.2726,2075.1,2073.9,2.90695]
[1617720924559,2.90695,2074.0,2073.9,2.90695]
[1617720924856,2.90695,2074.0,2072.7,2.0]
[1617720924857,4.94025,2074.0,2072.7,2.0]
[1617720925658,4.94025,2074.0,2072.1,30.9558]
[1617720925859,4.94025,2074.0,2072.2,2.0]
[1617720926158,4.94025,2074.0,2072.2,30.0]
[1617720926660,55.1279,2073.6,2073.4,2.90695]
[1617720928661,2.90695,2073.5,2073.4,2.90695]
[1617720928866,4.95825,2073.5,2073.4,2.90695]
[1617720929964,2.90695,2073.5,2073.4,2.90695]
[1617720930363,4.95915,2073.5,2073.4,2.90695]
[1617720932171,4.95915,2073.5,2072.0,30.9564]
[1617720932568,2.0522,2073.5,2073.1,2.90695]
[1617720932770,80.9394,2073.8,2073.1,2.90695]
[1617720932969,110.9394,2073.8,2073.1,2.90695]
[1617720933170,110.9394,2073.8,2071.7,2.0]
[1617720933872,2.0,2073.7,2071.7,2.0]
[1617720934173,2.0,2073.5,2071.7,2.0]
[1617720934374,30.0,2073.4,2071.7,2.0]
[1617720934573,2.0,2073.3,2071.7,2.0]
[1617720934775,72.6359,2073.2,2072.4,2.90695]
[1617720934973,70.6359,2073.2,2072.4,2.90695]
[1617720935575,70.6359,2073.2,2071.4,2.0]
[1617720935775,100.6359,2073.2,2070.8,32.0]
[1617720935978,102.6359,2073.2,2070.8,32.0]
[1617720936178,72.6359,2073.2,2070.8,32.0]
[1617720936576,102.6359,2073.2,2070.8,32.0]
[1617720936776,102.6359,2073.2,2071.8,2.90695]
[1617720937478,70.6359,2073.2,2071.8,2.90695]
[1617720938777,2.90695,2071.9,2071.8,2.90695]
[1617720946282,54.7512,2072.5,2071.8,2.90695]
[1617720946486,54.7512,2072.5,2071.8,5.62315]
[1617720946887,54.7512,2072.5,2072.2,2.90695]
[1617720948787,2.90695,2072.3,2072.2,2.90695]
[1617720949989,4.72995,2072.3,2072.2,2.90695]